bitfinex-derivatives/quotes_BTCF0:USTF0_20241223
["timestamp","ask_amount","ask_price","bid_price","bid_amount"]
[1734924131559,0.00947575,95539.0,95538.0,0.01128013]
[1734924131761,0.00947575,95539.0,95538.0,0.01123204]
[1734924132066,0.00947575,95539.0,95527.0,0.3608]
[1734924132369,0.00179422,95533.0,95529.0,0.15842783]
[1734924132663,0.008,95539.0,95538.0,0.052392]
[1734924132857,0.008,95539.0,95538.0,0.413192]
[1734924133059,0.3608,95572.0,95538.0,0.51731499]
[1734924133258,0.20884385,95573.0,95557.0,0.3608]
[1734924134068,0.20884385,95573.0,95569.0,0.3608]
[1734924134967,0.052379,95563.0,95557.0,0.3608]
[1734924135168,0.055,95562.0,95557.0,0.3608]
[1734924136764,0.055,95562.0,95548.0,0.3608]
[1734924136964,0.3608,95561.0,95548.0,0.3608]
[1734924137271,0.15842783,95558.0,95548.0,0.3608]
[1734924137970,0.3608,95552.0,95548.0,0.002]
[1734924138166,0.052387,95546.0,95537.0,0.3608]
[1734924138472,0.052388,95544.0,95537.0,0.3608]
[1734924139667,0.15842783,95547.0,95537.0,0.3608]
[1734924140367,0.16920672,95547.0,95537.0,0.3608]
[1734924140967,0.22159372,95547.0,95537.0,0.3608]
[1734924141277,0.0565,95550.0,95537.0,0.3608]
[1734924141484,0.3618,95552.0,95537.0,0.3608]
[1734924142087,0.001,95547.0,95537.0,0.3678]
[1734924142386,0.001,95547.0,95537.0,0.420192]
[1734924142981,0.052391,95540.0,95537.0,0.3678]
[1734924143188,0.3608,95544.0,95537.0,0.007]
[1734924143778,0.3608,95542.0,95537.0,0.004]
[1734924144084,0.3608,95542.0,95538.0,0.01129459]
[1734924144283,0.3608,95542.0,95539.0,0.01129459]
[1734924144481,0.3608,95542.0,95540.0,0.01129459]
[1734924144680,0.3608,95542.0,95541.0,0.01129459]
[1734924145387,0.001,95544.0,95541.0,0.01129459]
[1734924145589,0.15842783,95550.0,95542.0,0.01129459]
[1734924145781,0.16948969,95550.0,95543.0,0.01129459]
[1734924145979,0.16948969,95550.0,95544.0,0.01129459]
[1734924146287,0.01106186,95550.0,95545.0,0.01129459]
[1734924146589,0.01106186,95550.0,95539.0,0.3608]
[1734924146590,0.052381,95559.0,95546.0,0.01134546]
[1734924146779,0.052381,95559.0,95549.0,0.3608]
[1734924146979,0.052381,95559.0,95550.0,0.01134546]
[1734924147278,0.15842783,95560.0,95551.0,0.01134546]
[1734924147575,0.1695061,95560.0,95552.0,0.01134546]
[1734924147781,0.001,95559.0,95553.0,0.01134546]
[1734924147981,0.001,95559.0,95549.0,0.3608]
[1734924147982,0.001,95559.0,95554.0,0.01134546]
[1734924148182,0.001,95559.0,95555.0,0.01134546]
[1734924148480,0.1715061,95560.0,95556.0,0.01134546]
[1734924148683,0.01307827,95560.0,95557.0,0.01134546]
[1734924148879,0.002,95560.0,95559.0,0.41318]
[1734924149181,0.002,95560.0,95559.0,0.42452546]
[1734924149979,0.002,95560.0,95559.0,0.42455814]
[1734924150285,0.0547,95574.0,95559.0,0.42455814]
[1734924150480,0.0547,95574.0,95561.0,0.052379]
[1734924150686,0.0547,95574.0,95571.0,0.3608]
[1734924150881,0.06562137,95574.0,95572.0,0.01137814]
[1734924151083,0.06562137,95574.0,95573.0,0.01137814]
[1734924151590,0.06662137,95574.0,95573.0,0.01137814]
[1734924152288,0.06662137,95574.0,95573.0,0.02037814]
[1734924152477,0.06662137,95574.0,95573.0,0.009]
[1734924152677,0.06662137,95574.0,95559.0,0.3608]
[1734924152891,0.3608,95568.0,95560.0,0.01133264]
[1734924153086,0.3608,95568.0,95561.0,0.01133264]
[1734924153283,0.052382,95556.0,95550.0,0.3608]
[1734924153485,0.052382,95556.0,95551.0,0.01133245]
[1734924153681,0.052382,95556.0,95552.0,0.01133245]
[1734924153892,0.052382,95556.0,95553.0,0.01133245]
[1734924154093,0.052382,95556.0,95554.0,0.01133245]
[1734924154295,0.052382,95556.0,95555.0,0.01133245]
[1734924154983,0.053382,95556.0,95555.0,0.01133245]
[1734924155280,0.001,95556.0,95555.0,0.01133245]
[1734924156193,0.001,95556.0,95555.0,0.37213245]
[1734924156494,0.001,95556.0,95555.0,0.42451545]
[1734924157787,0.004,95556.0,95555.0,0.42451545]
[1734924158596,0.01,95556.0,95555.0,0.42451545]
[1734924158899,0.01,95556.0,95555.0,0.42455319]
[1734924159991,0.12496223,95574.0,95555.0,0.37217019]
[1734924160189,0.12496223,95574.0,95573.0,0.052373]
[1734924160495,0.12496223,95574.0,95573.0,0.06374319]
[1734924160697,0.12496223,95574.0,95573.0,0.06375977]
[1734924160991,0.18697845,95585.0,95578.0,0.05237]
[1734924161198,0.12523695,95587.0,95586.0,0.052365]
[1734924161493,0.12523695,95587.0,95586.0,0.42454716]
[1734924162790,0.052357,95603.0,95586.0,0.37218216]
[1734924162989,0.052357,95603.0,95599.0,0.3608]
[1734924163191,0.052357,95603.0,95599.0,0.01138216]
[1734924164097,0.101,95600.0,95599.0,0.01138216]
[1734924164596,0.101,95600.0,95599.0,0.01123791]
[1734924165997,0.101,95600.0,95593.0,0.052361]
[1734924166197,0.0579,95599.0,95594.0,0.01124032]
[1734924166399,0.0579,95599.0,95595.0,0.01124032]
[1734924166600,0.0579,95599.0,95596.0,0.01124032]
[1734924166802,0.0579,95599.0,95597.0,0.01124032]
[1734924167102,0.0579,95599.0,95598.0,0.01124032]
[1734924167293,0.0579,95599.0,95598.0,0.01122223]
[1734924167800,0.0579,95599.0,95593.0,0.052361]
[1734924167999,0.0579,95599.0,95594.0,0.01121474]
[1734924168199,0.0579,95599.0,95595.0,0.01121474]
[1734924168501,0.0579,95599.0,95596.0,0.01121474]
[1734924168692,0.0579,95599.0,95597.0,0.01122666]
[1734924168892,0.0579,95599.0,95598.0,0.01122666]
[1734924170098,0.0589,95599.0,95598.0,0.01122666]
[1734924170604,0.0589,95599.0,95598.0,0.01118894]
[1734924170803,0.0589,95599.0,95594.0,0.3608]
[1734924170804,0.0589,95599.0,95597.0,0.052359]
[1734924171101,0.0589,95599.0,95598.0,0.01118826]
[1734924173600,0.0589,95599.0,95598.0,0.01117384]
[1734924174600,0.001,95599.0,95598.0,0.01117384]
[1734924175193,0.1,95600.0,95598.0,0.37197384]
[1734924175395,0.052347,95621.0,95599.0,0.01117384]
[1734924175597,0.09351821,95638.0,95609.0,0.052353]
[1734924175598,0.0558,95626.0,95609.0,0.052353]
[1734924175799,0.0558,95626.0,95610.0,0.01117384]
[1734924176110,0.052349,95617.0,95611.0,0.01117384]
[1734924176408,0.10513903,95621.0,95612.0,0.01122023]
[1734924176607,0.052348,95619.0,95613.0,0.01121798]
[1734924176808,0.052348,95619.0,95611.0,0.052352]
[1734924177005,0.052348,95619.0,95612.0,0.01121843]
[1734924177195,0.052348,95619.0,95611.0,0.052352]
[1734924177396,0.052348,95619.0,95612.0,0.01121969]
[1734924177601,0.052349,95618.0,95608.0,0.3608]
[1734924177806,0.052349,95618.0,95609.0,0.01123205]
[1734924178008,0.052349,95618.0,95610.0,0.01123205]
[1734924178205,0.052349,95618.0,95611.0,0.01123205]
[1734924178402,0.001,95621.0,95614.0,0.05235]
[1734924178711,0.001,95621.0,95616.0,0.3608]
[1734924179805,0.001,95619.0,95616.0,0.3608]
[1734924180105,0.001,95619.0,95611.0,0.002]
[1734924180304,0.052354,95608.0,95589.0,0.052364]
[1734924180605,0.0571,95607.0,95596.0,0.05236]
[1734924180802,0.0571,95607.0,95588.0,0.19325447]
[1734924180803,0.0571,95607.0,95592.0,0.18266998]
[1734924181008,0.052362,95594.0,95592.0,0.18266998]
[1734924181810,0.052364,95590.0,95589.0,0.002]
[1734924182009,0.413164,95590.0,95589.0,0.002]
[1734924182816,0.052364,95590.0,95589.0,0.002]
[1734924183110,0.003,95594.0,95576.0,0.3608]
[1734924183416,0.003,95594.0,95585.0,0.3608]
[1734924183803,0.002,95590.0,95585.0,0.3608]
[1734924184203,0.002,95590.0,95581.0,0.01075651]
[1734924184416,0.052368,95582.0,95578.0,0.0025691]
[1734924184612,0.3608,95579.0,95578.0,0.0025691]
[1734924184815,0.052375,95569.0,95564.0,0.18266998]
[1734924185004,0.3608,95596.0,95568.0,0.3608]
[1734924185317,0.3608,95596.0,95587.0,0.052365]
[1734924185505,0.058,95595.0,95587.0,0.413165]
[1734924185705,0.058,95595.0,95587.0,0.3608]
[1734924186015,0.002,95590.0,95587.0,0.3608]
[1734924186711,0.052362,95593.0,95587.0,0.3608]
[1734924187212,0.002,95590.0,95587.0,0.3608]
[1734924187717,0.052362,95593.0,95587.0,0.3608]
[1734924187925,0.052363,95592.0,95587.0,0.3608]
[1734924188518,0.052364,95590.0,95581.0,0.3608]
[1734924188813,0.052364,95590.0,95579.0,0.052369]
[1734924189403,0.002,95590.0,95572.0,0.18266998]
[1734924189609,0.052367,95587.0,95572.0,0.18266998]
[1734924189814,0.052367,95587.0,95568.0,0.3608]
[1734924189815,0.052367,95587.0,95574.0,0.052373]
[1734924190206,0.052367,95587.0,95575.0,0.15635238]
[1734924191210,0.053367,95587.0,95575.0,0.15635238]
[1734924191610,0.053367,95587.0,95575.0,0.052372]
[1734924191814,0.001,95587.0,95577.0,0.05237]
[1734924192010,0.001,95587.0,95572.0,0.18266998]
[1734924192315,0.001,95587.0,95573.0,0.01120504]
[1734924192622,0.058,95595.0,95576.0,0.3608]
[1734924192811,0.001,95587.0,95581.0,0.052367]
[1734924193010,0.001,95587.0,95582.0,0.01120504]
[1734924193213,0.001,95587.0,95583.0,0.01120504]
[1734924193518,0.052365,95586.0,95584.0,0.01120504]
[1734924193715,0.052372,95573.0,95571.0,0.18266998]
[1734924193919,0.052372,95573.0,95568.0,0.24277484]
[1734924193920,0.0601,95572.0,95568.0,0.24277484]
[1734924195214,0.0601,95572.0,95561.0,0.24513543]
[1734924195516,0.09351821,95584.0,95572.0,0.052372]
[1734924196118,0.14588421,95584.0,95572.0,0.052372]
[1734924196524,0.052366,95584.0,95572.0,0.052372]
[1734924196705,0.053366,95584.0,95572.0,0.052372]
[1734924197111,0.052367,95582.0,95568.0,0.3608]
[1734924197515,0.052368,95580.0,95567.0,0.18197347]
[1734924197714,0.052368,95580.0,95561.0,0.01078296]
[1734924197715,0.001,95584.0,95563.0,0.18197347]
[1734924197919,0.3608,95577.0,95563.0,0.18197347]
[1734924198219,0.052375,95569.0,95563.0,0.18197347]
[1734924198820,0.3608,95569.0,95563.0,0.18197347]
[1734924199008,0.052377,95564.0,95563.0,0.18197347]
[1734924199413,0.052377,95564.0,95561.0,0.01078296]
[1734924199612,0.052377,95564.0,95556.0,0.3608]
[1734924200024,0.052377,95564.0,95556.0,0.37155332]
[1734924200525,0.055377,95564.0,95556.0,0.37155332]
[1734924201923,0.052377,95564.0,95556.0,0.37155332]
[1734924202224,0.053377,95564.0,95556.0,0.37155332]
[1734924203123,0.001,95564.0,95556.0,0.37155332]
[1734924203425,0.001,95564.0,95560.0,0.052379]
[1734924205320,0.3608,95569.0,95560.0,0.052379]
[1734924205518,0.001,95564.0,95560.0,0.052379]
[1734924206124,0.10513903,95573.0,95560.0,0.052379]
[1734924206325,0.052374,95569.0,95560.0,0.052379]
[1734924206525,0.052374,95569.0,95556.0,0.37295332]
[1734924206728,0.001,95564.0,95556.0,0.37155332]
[1734924207420,0.001,95564.0,95563.0,0.052377]
[1734924208223,0.001,95564.0,95556.0,0.42541332]
[1734924208423,0.05238,95557.0,95556.0,0.3608]
[1734924209123,0.05131919,95557.0,95556.0,0.3608]
[1734924210130,0.05431919,95557.0,95556.0,0.3608]
[1734924210318,0.05431919,95557.0,95553.0,0.01058971]
[1734924210523,0.05431919,95557.0,95550.0,7.671e-05]
[1734924210722,0.052381,95556.0,95550.0,7.671e-05]
[1734924211232,0.052381,95556.0,95550.0,0.01072339]
[1734924211926,0.0596,95565.0,95550.0,7.671e-05]
[1734924211927,0.052383,95552.0,95550.0,7.671e-05]
[1734924212229,0.052386,95547.0,95546.0,0.18337347]
[1734924212417,0.413186,95547.0,95546.0,0.18197347]
[1734924213031,0.413186,95547.0,95528.0,0.00148]
[1734924213032,0.052387,95545.0,95528.0,0.00148]
[1734924213231,7.913e-05,95545.0,95525.0,0.18197347]
[1734924213524,0.052395,95530.0,95525.0,0.18197347]
[1734924213738,0.052396,95529.0,95525.0,0.18197347]
[1734924214029,0.10513903,95538.0,95525.0,0.18197347]
[1734924214030,0.413197,95527.0,95525.0,0.18197347]
[1734924214224,0.0605,95526.0,95525.0,0.18197347]
[1734924214428,0.0605,95526.0,95521.0,0.24277484]
[1734924214629,0.052402,95518.0,95516.0,0.18197347]
[1734924214827,0.413202,95518.0,95516.0,0.18197347]
[1734924215723,0.052402,95518.0,95516.0,0.18197347]
[1734924216525,0.052402,95518.0,95512.0,0.24277484]
[1734924216832,0.052402,95518.0,95507.0,0.3608]
[1734924217021,0.052402,95518.0,95501.0,0.00157044]
[1734924217223,0.052402,95518.0,95506.0,0.3608]
[1734924217527,0.10513903,95520.0,95501.0,0.00157044]
[1734924217827,0.09351821,95542.0,95537.0,0.052391]
[1734924218635,0.09351821,95542.0,95541.0,0.052389]
[1734924219130,0.3608,95549.0,95536.0,0.3608]
[1734924219332,0.006,95539.0,95536.0,0.3608]
[1734924219732,0.006,95539.0,95537.0,0.052391]
[1734924219932,0.3608,95549.0,95536.0,0.3608]
[1734924219933,0.001,95542.0,95541.0,0.052389]
[1734924221432,0.3608,95562.0,95544.0,0.052387]
[1734924222530,0.00207913,95545.0,95544.0,0.06339628]
[1734924223327,0.00207913,95545.0,95544.0,0.052387]
[1734924223529,0.0597,95565.0,95552.0,0.052383]
[1734924223724,0.0597,95565.0,95553.0,0.052382]
[1734924223931,0.0597,95565.0,95555.0,0.052381]
[1734924225237,0.0597,95565.0,95558.0,0.3608]
[1734924225538,0.052373,95570.0,95559.0,0.052379]
[1734924226441,0.3608,95571.0,95560.0,0.46593903]
[1734924226637,0.3608,95571.0,95567.0,0.052375]
[1734924227438,0.1172,95577.0,95560.0,0.46733903]
[1734924227650,0.0601,95577.0,95567.0,0.10513903]
[1734924227843,0.0601,95577.0,95576.0,0.05237]
[1734924228040,0.00157028,95578.0,95576.0,0.05237]
[1734924228637,0.00157028,95578.0,95577.0,0.01101104]
[1734924229038,0.00857028,95578.0,95577.0,0.01101104]
[1734924229539,0.052372,95573.0,95560.0,0.3608]
[1734924229841,0.3608,95577.0,95558.0,0.23435347]
[1734924230144,0.052374,95569.0,95558.0,0.23435347]
[1734924230439,0.052375,95567.0,95558.0,0.18197347]
[1734924230639,0.0567,95566.0,95556.0,0.3608]
[1734924231232,0.0567,95566.0,95558.0,0.002]
[1734924231842,0.0567,95566.0,95557.0,0.05238]
[1734924232226,0.0567,95566.0,95559.0,0.052379]
[1734924232742,0.0567,95566.0,95560.0,0.01102037]
[1734924233040,0.0567,95566.0,95561.0,0.01102037]
[1734924233237,0.0567,95566.0,95562.0,0.01102037]
[1734924233432,0.0567,95566.0,95563.0,0.01102037]
[1734924233633,0.0567,95566.0,95564.0,0.01102037]
[1734924233832,0.0567,95566.0,95560.0,0.052378]
[1734924233833,0.0567,95566.0,95565.0,0.01102037]
[1734924234637,0.0567,95566.0,95560.0,0.052378]
[1734924235035,0.0587,95566.0,95560.0,0.052378]
[1734924235535,0.003,95566.0,95564.0,0.3608]
[1734924235743,0.003,95566.0,95565.0,0.052376]
[1734924236439,0.003,95566.0,95565.0,0.06339114]
[1734924236637,0.003,95566.0,95565.0,0.052376]
[1734924237142,0.00157028,95578.0,95571.0,0.052372]
[1734924237442,0.00157028,95578.0,95574.0,0.052371]
[1734924238541,0.00357028,95578.0,95574.0,0.052371]
[1734924240528,0.00157028,95578.0,95568.0,0.3608]
[1734924240733,0.3608,95574.0,95560.0,0.0014]
[1734924240938,0.052375,95569.0,95557.0,0.3608]
[1734924241139,0.052375,95569.0,95560.0,0.10513903]
[1734924242436,0.053375,95569.0,95560.0,0.10513903]
[1734924243133,0.053375,95569.0,95560.0,0.46593903]
[1734924243536,0.001,95569.0,95560.0,0.46593903]
[1734924243740,0.001,95569.0,95566.0,0.052376]
[1734924243948,0.001,95569.0,95567.0,0.052375]
[1734924244141,0.3608,95574.0,95560.0,0.46737903]
[1734924244347,0.001,95569.0,95568.0,0.052375]
[1734924245235,0.3608,95574.0,95560.0,0.46593903]
[1734924245439,0.001,95569.0,95568.0,0.052374]
[1734924246546,0.001,95569.0,95568.0,0.413174]
[1734924246751,0.00157028,95578.0,95577.0,0.05237]
[1734924247043,0.00157028,95578.0,95577.0,0.41317]
[1734924247751,0.00157028,95578.0,95577.0,0.42422553]
[1734924248240,0.3608,95585.0,95577.0,0.37185553]
[1734924248446,0.3608,95585.0,95582.0,0.052367]
[1734924248650,0.3608,95585.0,95583.0,0.06342153]
[1734924248836,0.3608,95585.0,95584.0,0.01105553]
[1734924249742,0.3608,95598.0,95584.0,0.01105553]
[1734924249941,0.3608,95598.0,95577.0,0.37304106]
[1734924249942,0.3608,95598.0,95597.0,0.052359]
[1734924250157,0.3608,95598.0,95597.0,0.06341453]
[1734924250647,0.3608,95598.0,95597.0,0.052359]
[1734924251349,0.09351821,95600.0,95598.0,0.052358]
[1734924252056,0.0565,95602.0,95601.0,0.052357]
[1734924253739,0.09351821,95619.0,95596.0,0.3608]
[1734924253948,0.1176,95618.0,95609.0,0.10513903]
[1734924255957,0.052352,95609.0,95608.0,0.0014]
[1734924256257,0.052352,95609.0,95599.0,0.052358]
[1734924256755,0.3608,95604.0,95595.0,0.01048258]
[1734924256954,0.3608,95604.0,95590.0,0.15750203]
[1734924257153,0.3608,95596.0,95590.0,0.052363]
[1734924257352,0.3608,95596.0,95588.0,0.18197347]
[1734924257353,0.22856,95595.0,95588.0,0.18197347]
[1734924257852,0.22856,95595.0,95581.0,0.052368]
[1734924258649,0.1762,95595.0,95587.0,0.052364]
[1734924259154,0.1762,95595.0,95581.0,0.052368]
[1734924259345,0.1762,95595.0,95589.0,0.052363]
[1734924259544,0.1772,95595.0,95581.0,0.003]
[1734924259742,0.1772,95595.0,95593.0,0.052361]
[1734924260152,0.1772,95595.0,95587.0,0.3608]
[1734924260355,0.1772,95595.0,95580.0,0.10513903]
[1734924260566,0.1772,95595.0,95587.0,0.052365]
[1734924261448,0.1772,95595.0,95580.0,0.10513903]
[1734924261449,0.1772,95595.0,95578.0,0.3608]
[1734924261653,0.052372,95574.0,95567.0,0.14987484]
[1734924261851,0.3608,95568.0,95561.0,0.26748114]
[1734924262058,0.3608,95562.0,95561.0,0.10216331]
[1734924262250,0.052382,95556.0,95555.0,0.36557178]
[1734924262448,0.05239,95540.0,95539.0,0.0014]
[1734924262659,0.052392,95537.0,95536.0,0.36557178]
[1734924262851,0.052392,95537.0,95536.0,0.36417178]
[1734924263045,0.05248973,95537.0,95536.0,0.36417178]
[1734924263958,0.05248973,95537.0,95524.0,0.01070183]
[1734924264149,0.052398,95528.0,95520.0,0.36237015]
[1734924264349,0.052398,95528.0,95522.0,0.01070609]
[1734924264544,0.052398,95528.0,95520.0,0.00157015]
[1734924264851,0.3608,95524.0,95520.0,0.00157015]
[1734924265756,0.3608,95524.0,95523.0,0.064]
[1734924266148,0.3608,95524.0,95523.0,0.003]
[1734924266354,0.0524,95523.0,95520.0,0.00157015]
[1734924266857,0.052401,95522.0,95520.0,0.00157015]
[1734924267457,0.01054262,95523.0,95507.0,0.0611]
[1734924267764,0.3618,95524.0,95500.0,0.1]
[1734924267765,0.3608,95508.0,95500.0,0.1]
[1734924267947,0.052412,95501.0,95500.0,0.1]
[1734924268350,0.3608,95508.0,95500.0,0.1]
[1734924268957,0.413212,95501.0,95500.0,0.1]
[1734924269160,0.052415,95495.0,95494.0,8.341e-05]
[1734924269565,0.052419,95489.0,95480.0,0.00157079]
[1734924269863,0.3608,95486.0,95480.0,0.00157079]
[1734924270258,0.3608,95482.0,95480.0,0.00157079]
[1734924270461,0.052423,95481.0,95480.0,0.00157079]
[1734924270668,0.052428,95473.0,95471.0,0.0612]
[1734924270859,0.052429,95471.0,95454.0,0.3608]
[1734924271059,0.21027806,95464.0,95454.0,0.37130425]
[1734924271361,0.10513903,95464.0,95454.0,0.3608]
[1734924271664,0.00013065,95470.0,95463.0,0.3608]
[1734924271856,0.3608,95482.0,95468.0,0.05243]
[1734924272054,0.3608,95482.0,95470.0,0.10513903]
[1734924272353,0.3608,95492.0,95473.0,0.3608]
[1734924272654,0.3608,95502.0,95490.0,0.3608]
[1734924272859,5.049e-05,95501.0,95490.0,0.3608]
[1734924273058,5.049e-05,95501.0,95484.0,0.052421]
[1734924273259,5.049e-05,95501.0,95486.0,0.05242]
[1734924273460,5.049e-05,95501.0,95492.0,0.3608]
[1734924274569,5.049e-05,95501.0,95492.0,0.413217]
[1734924275369,5.049e-05,95501.0,95499.0,0.052413]
[1734924276277,5.049e-05,95501.0,95492.0,0.37311085]
[1734924276568,0.00105049,95501.0,95492.0,0.37471085]
[1734924276971,0.00105049,95501.0,95499.0,0.001]
[1734924276972,5.049e-05,95501.0,95499.0,0.001]
[1734924278460,5.049e-05,95501.0,95492.0,0.37311085]
[1734924278663,0.00105049,95501.0,95492.0,0.37471085]
[1734924278864,0.052413,95500.0,95492.0,0.3638]
[1734924279063,0.052413,95500.0,95492.0,0.3608]
[1734924279465,0.3608,95483.0,95445.0,9.755e-05]
[1734924279665,0.052454,95425.0,95411.0,0.37501749]
[1734924279872,0.15812626,95421.0,95411.0,0.36417178]
[1734924280067,0.15812626,95421.0,95412.0,0.00157105]
[1734924280263,0.3608,95426.0,95412.0,0.00157105]
[1734924280673,0.00010409,95425.0,95412.0,0.00157105]
[1734924281071,0.00010409,95425.0,95420.0,0.052457]
[1734924281270,0.3608,95426.0,95422.0,0.052455]
[1734924281570,0.3608,95426.0,95423.0,0.00157105]
[1734924281877,0.3608,95426.0,95424.0,0.052455]
[1734924282179,0.001,95425.0,95423.0,0.00157105]
[1734924282466,4.395e-05,95424.0,95423.0,0.00157105]
[1734924282673,0.3608,95433.0,95423.0,0.00157105]
[1734924282674,0.3608,95434.0,95423.0,0.00157105]
[1734924282874,0.3608,95434.0,95422.0,0.001]
[1734924283076,0.3608,95434.0,95423.0,0.00157105]
[1734924283373,0.052454,95426.0,95423.0,0.00157105]
[1734924283572,0.05245,95433.0,95423.0,0.00157105]
[1734924284172,0.052451,95432.0,95423.0,0.00157105]
[1734924284361,0.3608,95425.0,95418.0,0.0561]
[1734924284779,0.3608,95425.0,95423.0,0.001]
[1734924285475,0.3608,95443.0,95437.0,0.052447]
[1734924285673,0.3608,95453.0,95437.0,0.052447]
[1734924286660,0.15812626,95450.0,95432.0,0.3608]
[1734924286864,0.052455,95424.0,95423.0,0.001]
[1734924287064,0.413255,95424.0,95423.0,0.001]
[1734924287767,0.43943113,95424.0,95423.0,0.001]
[1734924288079,0.43943113,95424.0,95400.0,0.152468]
[1734924288080,0.3608,95424.0,95413.0,0.052461]
[1734924289069,0.3608,95424.0,95423.0,0.001]
[1734924289471,0.3608,95424.0,95413.0,0.052461]
[1734924289671,0.3618,95424.0,95413.0,0.053461]
[1734924290069,0.3608,95424.0,95408.0,0.3608]
[1734924290271,0.3608,95424.0,95423.0,0.001]
[1734924291672,0.3618,95424.0,95419.0,0.052457]
[1734924292472,0.3618,95424.0,95413.0,0.001]
[1734924292473,0.3608,95424.0,95423.0,0.001]
[1734924292779,0.052467,95401.0,95387.0,0.36237233]
[1734924293180,0.052467,95401.0,95397.0,0.00157105]
[1734924293871,0.3608,95403.0,95397.0,0.05404005]
[1734924294574,0.01078804,95412.0,95397.0,0.00157105]
[1734924294876,0.01078804,95412.0,95396.0,0.3608]
[1734924294877,0.3608,95424.0,95413.0,0.05246]
[1734924295066,0.3608,95424.0,95405.0,0.3608]
[1734924295067,0.3608,95424.0,95414.0,0.37341065]
[1734924295270,0.01576,95439.0,95428.0,0.052452]
[1734924295271,0.052448,95437.0,95428.0,0.052452]
[1734924295769,0.06303529,95437.0,95429.0,0.01103965]
[1734924295974,0.06303529,95437.0,95430.0,0.0111134]
[1734924296274,0.06303529,95437.0,95428.0,0.052452]
[1734924296469,0.06303529,95437.0,95429.0,0.01112276]
[1734924296778,0.01058729,95437.0,95430.0,0.01112276]
[1734924296984,0.002,95437.0,95431.0,0.06357276]
[1734924297177,0.002,95437.0,95432.0,0.01112276]
[1734924297378,0.002,95437.0,95433.0,0.01112276]
[1734924297574,0.002,95437.0,95434.0,0.01112276]
[1734924297777,0.002,95437.0,95423.0,0.37163841]
[1734924297982,0.002,95437.0,95424.0,0.01114163]
[1734924298174,0.002,95437.0,95435.0,0.052448]
[1734924298376,0.37161713,95445.0,95436.0,0.01114163]
[1734924298575,0.37161713,95445.0,95437.0,0.06358963]
[1734924298776,0.01572,95444.0,95438.0,0.01114163]
[1734924298976,0.01572,95444.0,95439.0,0.01114163]
[1734924299177,0.01572,95444.0,95440.0,0.01114163]
[1734924299474,0.01572,95444.0,95441.0,0.01114163]
[1734924299683,0.01572,95444.0,95442.0,0.01114163]
[1734924299884,0.01572,95444.0,95443.0,0.01114163]
[1734924300085,0.37652,95444.0,95430.0,0.15812626]
[1734924300275,0.052444,95443.0,95431.0,0.01116292]
[1734924300475,0.052444,95443.0,95432.0,0.01116292]
[1734924300670,0.052444,95443.0,95433.0,0.01116292]
[1734924300880,0.052444,95443.0,95434.0,0.01116292]
[1734924301081,0.00157259,95448.0,95432.0,0.3608]
[1734924301283,0.3608,95453.0,95438.0,0.15812626]
[1734924301489,0.3608,95453.0,95449.0,0.052441]
[1734924301678,0.3608,95453.0,95451.0,0.05244]
[1734924301879,0.3608,95453.0,95452.0,0.00157105]
[1734924302483,0.052433,95464.0,95452.0,0.00157105]
[1734924302484,0.052434,95463.0,95452.0,0.00157105]
[1734924302788,0.005,95453.0,95451.0,0.05244]
[1734924303087,0.052434,95463.0,95451.0,0.05244]
[1734924303088,0.06305155,95463.0,95451.0,0.05244]
[1734924303291,0.006,95453.0,95451.0,0.05244]
[1734924303677,0.006,95453.0,95451.0,0.05401105]
[1734924303874,0.006,95453.0,95452.0,0.3608]
[1734924304085,0.006,95453.0,95452.0,0.418]
[1734924304683,0.001,95463.0,95452.0,0.418]
[1734924305178,0.3608,95465.0,95452.0,0.418]
[1734924305380,0.006,95453.0,95452.0,0.470439]
[1734924305588,0.3608,95465.0,95452.0,0.4735]
[1734924305786,0.3608,95465.0,95456.0,0.052437]
[1734924305990,0.001,95463.0,95456.0,0.052437]
[1734924306193,0.001,95463.0,95452.0,0.4749]
[1734924306385,0.001,95463.0,95452.0,0.4735]
[1734924306698,0.006,95453.0,95452.0,0.4735]
[1734924308091,0.001,95463.0,95456.0,0.006]
[1734924308496,0.053434,95463.0,95456.0,0.006]
[1734924308790,0.053434,95463.0,95453.0,0.052438]
[1734924308791,0.052434,95463.0,95453.0,0.052438]
[1734924309292,0.001,95463.0,95456.0,0.009]
[1734924309594,0.001,95463.0,95460.0,0.052435]
[1734924309986,0.001,95463.0,95461.0,0.00157105]
[1734924310883,0.3608,95465.0,95461.0,0.00157105]
[1734924311082,0.001,95463.0,95461.0,0.00157105]
[1734924311791,0.001,95463.0,95461.0,0.00757105]
[1734924312389,0.001,95463.0,95461.0,0.006]
[1734924312585,0.001,95463.0,95423.0,0.30306633]
[1734924312586,0.353433,95463.0,95435.0,0.0559]
[1734924312787,0.3608,95439.0,95424.0,0.30450633]
[1734924312986,0.413254,95425.0,95424.0,0.30306633]
[1734924313589,0.3608,95439.0,95424.0,0.30306633]
[1734924313590,0.00763688,95438.0,95424.0,0.30306633]
[1734924313790,0.3608,95447.0,95424.0,0.30306633]
[1734924313980,0.052445,95443.0,95433.0,0.05245]
[1734924314596,0.37138246,95447.0,95436.0,0.052448]
[1734924314792,0.052445,95443.0,95436.0,0.052448]
[1734924315286,0.052445,95443.0,95437.0,0.00157105]
[1734924315488,0.053445,95443.0,95437.0,0.00157105]
[1734924315997,0.001,95443.0,95438.0,0.052447]
[1734924316194,0.001,95443.0,95437.0,0.00157105]
[1734924316491,0.05245,95434.0,95430.0,0.3608]
[1734924316694,0.3608,95439.0,95430.0,0.3608]
[1734924317088,0.3608,95439.0,95431.0,0.00157105]
[1734924318293,0.05245,95432.0,95431.0,0.00157105]
[1734924318598,0.052455,95424.0,95422.0,0.3608]
[1734924318800,0.052458,95419.0,95406.0,0.3608]